[Event "Titled Tuesday Blitz June 29 2021"]
[White "DenLaz"]
[Black "Skat2704"]
[WhiteElo "2845"]
[BlackElo "2665"]
[Result "0-1"]
[Round "11"]
[TimeControl "180+1"]
[Date "2021.06.29"]
[WhiteClock "0:01:11"]
[BlackClock "0:01:08"]

1. d4 {[%clk 0:03:00]}  d5 {[%clk 0:02:59]} 2. c4 {[%clk 0:03:01]}  e6 {[%clk 0:02:59]} 3. Nf3 {[%clk 0:03:01]}  Nf6 {[%clk 0:02:58]} 4. Nc3 {[%clk 0:03:02]}  Be7 {[%clk 0:02:56]} 5. Bg5 {[%clk 0:03:02]}  h6 {[%clk 0:02:54]} 6. Bxf6 {[%clk 0:03:02]}  Bxf6 {[%clk 0:02:54]} 7. e3 {[%clk 0:03:03]}  O-O {[%clk 0:02:52]} 8. Rc1 {[%clk 0:03:04]}  b6 {[%clk 0:02:49]} 9. cxd5 {[%clk 0:02:57]}  exd5 {[%clk 0:02:50]} 10. Bd3 {[%clk 0:02:58]}  Bb7 {[%clk 0:02:48]} 11. O-O {[%clk 0:02:51]}  c5 {[%clk 0:02:41]} 12. b3 {[%clk 0:02:40]}  Nd7 {[%clk 0:02:37]} 13. Na4 {[%clk 0:02:38]}  Rc8 {[%clk 0:02:35]} 14. Bf5 {[%clk 0:02:36]}  g6 {[%clk 0:02:27]} 15. Bh3 {[%clk 0:02:19]}  cxd4 {[%clk 0:02:19]} 16. Rxc8 {[%clk 0:02:15]}  Bxc8 {[%clk 0:02:16]} 17. Nxd4 {[%clk 0:02:16]}  Nc5 {[%clk 0:02:13]} 18. Bxc8 {[%clk 0:02:12]}  Qxc8 {[%clk 0:02:08]} 19. Nc3 {[%clk 0:02:08]}  Rd8 {[%clk 0:02:03]} 20. Nce2 {[%clk 0:02:08]}  Qb7 {[%clk 0:01:55]} 21. Qc2 {[%clk 0:02:00]}  Ne4 {[%clk 0:01:51]} 22. Rc1 {[%clk 0:01:59]}  Bxd4 {[%clk 0:01:46]} 23. Nxd4 {[%clk 0:01:58]}  Nd6 {[%clk 0:01:46]} 24. Qc6 {[%clk 0:01:53]}  Rc8 {[%clk 0:01:33]} 25. Qxc8+ {[%clk 0:01:16]}  Nxc8 {[%clk 0:01:30]} 26. h3 {[%clk 0:01:17]}  Ne7 {[%clk 0:01:25]} 27. Nb5 {[%clk 0:01:16]}  Nf5 {[%clk 0:01:22]} 28. Rc7 {[%clk 0:01:15]}  Qa6 {[%clk 0:01:20]} 29. a4 {[%clk 0:01:14]}  Qa5 {[%clk 0:01:18]} 30. Nc3 {[%clk 0:01:13]}  d4 {[%clk 0:01:09]} 31. exd4 {[%clk 0:01:11]}  Nxd4 {[%clk 0:01:08]} 0-1


[Site "https://www.chess.com"]

[Event "Titled Tuesday Blitz June 29 2021"]
[White "GM_Crest"]
[Black "Jospem"]
[WhiteElo "2818"]
[BlackElo "2948"]
[Result "1-0"]
[Round "11"]
[TimeControl "180+1"]
[Date "2021.06.29"]
[WhiteClock "0:01:09"]
[BlackClock "0:00:09"]

1. d4 {[%clk 0:03:00]}  Nf6 {[%clk 0:03:00]} 2. c4 {[%clk 0:03:00]}  e6 {[%clk 0:03:00]} 3. Nc3 {[%clk 0:02:59]}  Bb4 {[%clk 0:03:00]} 4. e3 {[%clk 0:02:58]}  O-O {[%clk 0:02:59]} 5. Ne2 {[%clk 0:02:58]}  d5 {[%clk 0:02:59]} 6. a3 {[%clk 0:02:59]}  Be7 {[%clk 0:02:59]} 7. cxd5 {[%clk 0:02:59]}  exd5 {[%clk 0:02:59]} 8. Nf4 {[%clk 0:02:59]}  c6 {[%clk 0:02:56]} 9. Bd3 {[%clk 0:02:59]}  Bd6 {[%clk 0:02:52]} 10. O-O {[%clk 0:02:59]}  b6 {[%clk 0:02:49]} 11. f3 {[%clk 0:02:58]}  Bxf4 {[%clk 0:02:48]} 12. exf4 {[%clk 0:02:58]}  Ba6 {[%clk 0:02:49]} 13. f5 {[%clk 0:02:57]}  Bxd3 {[%clk 0:02:47]} 14. Qxd3 {[%clk 0:02:57]}  Nbd7 {[%clk 0:02:36]} 15. Bf4 {[%clk 0:02:56]}  c5 {[%clk 0:02:29]} 16. Rad1 {[%clk 0:02:53]}  c4 {[%clk 0:01:59]} 17. Qd2 {[%clk 0:02:46]}  a6 {[%clk 0:02:00]} 18. g4 {[%clk 0:02:47]}  Nb8 {[%clk 0:01:43]} 19. Be5 {[%clk 0:02:15]}  Ne8 {[%clk 0:01:32]} 20. Qg2 {[%clk 0:02:05]}  f6 {[%clk 0:01:19]} 21. Bg3 {[%clk 0:02:02]}  Nc6 {[%clk 0:01:13]} 22. Rfe1 {[%clk 0:02:02]}  Qd7 {[%clk 0:01:02]} 23. Re6 {[%clk 0:02:01]}  Rd8 {[%clk 0:01:02]} 24. Qe2 {[%clk 0:02:00]}  b5 {[%clk 0:00:54]} 25. Qe3 {[%clk 0:01:58]}  g6 {[%clk 0:00:49]} 26. fxg6 {[%clk 0:01:49]}  hxg6 {[%clk 0:00:48]} 27. Re1 {[%clk 0:01:49]}  Ng7 {[%clk 0:00:34]} 28. Rd6 {[%clk 0:01:46]}  Qxd6 {[%clk 0:00:34]} 29. Bxd6 {[%clk 0:01:45]}  Rxd6 {[%clk 0:00:35]} 30. Qf4 {[%clk 0:01:45]}  Rd7 {[%clk 0:00:31]} 31. h4 {[%clk 0:01:41]}  Kf7 {[%clk 0:00:32]} 32. h5 {[%clk 0:01:17]}  gxh5 {[%clk 0:00:24]} 33. gxh5 {[%clk 0:01:17]}  Ne7 {[%clk 0:00:23]} 34. Kf2 {[%clk 0:01:11]}  Rh8 {[%clk 0:00:19]} 35. h6 {[%clk 0:01:09]}  Ne6 {[%clk 0:00:14]} 36. Qg4 {[%clk 0:01:09]}  Rd6 {[%clk 0:00:09]} 37. Rxe6 {[%clk 0:01:09]} 1-0


[Site "https://www.chess.com"]

[Event "Titled Tuesday Blitz June 29 2021"]
[White "GrafLermontov"]
[Black "olksuna"]
[WhiteElo "2497"]
[BlackElo "2626"]
[Result "1-0"]
[Round "11"]
[TimeControl "180+1"]
[Date "2021.06.29"]
[WhiteClock "0:00:04"]
[BlackClock "0:00:03"]

1. e4 {[%clk 0:03:00]}  c5 {[%clk 0:02:59]} 2. Be2 {[%clk 0:03:00]}  d5 {[%clk 0:02:54]} 3. d3 {[%clk 0:02:57]}  Nf6 {[%clk 0:02:50]} 4. e5 {[%clk 0:02:54]}  Nfd7 {[%clk 0:02:50]} 5. f4 {[%clk 0:02:54]}  e6 {[%clk 0:02:50]} 6. Nf3 {[%clk 0:02:55]}  Be7 {[%clk 0:02:50]} 7. O-O {[%clk 0:02:55]}  O-O {[%clk 0:02:51]} 8. Qe1 {[%clk 0:02:54]}  Nc6 {[%clk 0:02:49]} 9. c3 {[%clk 0:02:54]}  b5 {[%clk 0:02:46]} 10. Kh1 {[%clk 0:02:54]}  b4 {[%clk 0:02:46]} 11. Qg3 {[%clk 0:02:44]}  f5 {[%clk 0:02:46]} 12. exf6 {[%clk 0:02:42]}  Bxf6 {[%clk 0:02:46]} 13. Be3 {[%clk 0:02:20]}  Rb8 {[%clk 0:02:44]} 14. Nbd2 {[%clk 0:02:14]}  bxc3 {[%clk 0:02:43]} 15. bxc3 {[%clk 0:02:14]}  Bxc3 {[%clk 0:02:43]} 16. Rac1 {[%clk 0:02:08]}  Bf6 {[%clk 0:02:43]} 17. Ng5 {[%clk 0:01:56]}  Qe7 {[%clk 0:02:40]} 18. Bg4 {[%clk 0:01:51]}  Bxg5 {[%clk 0:02:30]} 19. fxg5 {[%clk 0:01:52]}  Rxf1+ {[%clk 0:02:27]} 20. Rxf1 {[%clk 0:01:53]}  Ba6 {[%clk 0:02:26]} 21. h4 {[%clk 0:01:11]}  Bxd3 {[%clk 0:02:14]} 22. Rf2 {[%clk 0:01:11]}  c4 {[%clk 0:02:11]} 23. Qc7 {[%clk 0:00:48]}  Rf8 {[%clk 0:02:03]} 24. Qxc6 {[%clk 0:00:45]}  Rxf2 {[%clk 0:01:50]} 25. Bxf2 {[%clk 0:00:38]}  Kf7 {[%clk 0:01:29]} 26. Nf3 {[%clk 0:00:37]}  Be4 {[%clk 0:01:24]} 27. Bd4 {[%clk 0:00:30]}  h6 {[%clk 0:01:04]} 28. Ne5+ {[%clk 0:00:18]}  Nxe5 {[%clk 0:01:01]} 29. Bxe5 {[%clk 0:00:19]}  hxg5 {[%clk 0:01:01]} 30. h5 {[%clk 0:00:16]}  a5 {[%clk 0:00:54]} 31. Kh2 {[%clk 0:00:14]}  a4 {[%clk 0:00:44]} 32. Qc8 {[%clk 0:00:14]}  Bf5 {[%clk 0:00:33]} 33. Bxf5 {[%clk 0:00:11]}  exf5 {[%clk 0:00:34]} 34. Qxf5+ {[%clk 0:00:12]}  Kg8 {[%clk 0:00:35]} 35. Bd4 {[%clk 0:00:09]}  Qd6+ {[%clk 0:00:33]} 36. Kh3 {[%clk 0:00:10]}  Qc6 {[%clk 0:00:24]} 37. Qxg5 {[%clk 0:00:09]}  Qc7 {[%clk 0:00:24]} 38. Qxd5+ {[%clk 0:00:08]}  Kh7 {[%clk 0:00:24]} 39. Qf5+ {[%clk 0:00:08]}  Kg8 {[%clk 0:00:25]} 40. Qe6+ {[%clk 0:00:08]}  Kh7 {[%clk 0:00:25]} 41. Qg6+ {[%clk 0:00:08]}  Kg8 {[%clk 0:00:23]} 42. Qe8+ {[%clk 0:00:06]}  Kh7 {[%clk 0:00:23]} 43. h6 {[%clk 0:00:05]}  Kxh6 {[%clk 0:00:20]} 44. Qh8+ {[%clk 0:00:05]}  Kg6 {[%clk 0:00:20]} 45. Qe8+ {[%clk 0:00:05]}  Kh7 {[%clk 0:00:20]} 46. Qe4+ {[%clk 0:00:05]}  Kg8 {[%clk 0:00:20]} 47. Bc3 {[%clk 0:00:06]}  Qd7+ {[%clk 0:00:19]} 48. Kh2 {[%clk 0:00:06]}  Qd6+ {[%clk 0:00:19]} 49. Be5 {[%clk 0:00:05]}  Qh6+ {[%clk 0:00:18]} 50. Kg3 {[%clk 0:00:05]}  Qg5+ {[%clk 0:00:15]} 51. Kf3 {[%clk 0:00:05]}  Qh5+ {[%clk 0:00:14]} 52. g4 {[%clk 0:00:05]}  Qh1+ {[%clk 0:00:14]} 53. Kf4 {[%clk 0:00:05]}  Qh2+ {[%clk 0:00:13]} 54. Kg5 {[%clk 0:00:04]}  Qh6+ {[%clk 0:00:12]} 55. Kf5 {[%clk 0:00:05]}  Qh3 {[%clk 0:00:08]} 56. Qxc4+ {[%clk 0:00:04]}  Kh7 {[%clk 0:00:08]} 57. Ke6 {[%clk 0:00:03]}  a3 {[%clk 0:00:06]} 58. Qe4+ {[%clk 0:00:03]}  Kg8 {[%clk 0:00:06]} 59. Qf5 {[%clk 0:00:04]}  Qe3 {[%clk 0:00:03]} 60. Qf7+ {[%clk 0:00:04]} 1-0


[Site "https://www.chess.com"]

[Event "Titled Tuesday Blitz June 29 2021"]
[White "Grischuk"]
[Black "wonderfultime"]
[WhiteElo "3069"]
[BlackElo "2876"]
[Result "0-1"]
[Round "11"]
[TimeControl "180+1"]
[Date "2021.06.29"]
[WhiteClock "0:00:03"]
[BlackClock "0:00:22"]

1. e4 {[%clk 0:03:00]}  c5 {[%clk 0:02:58]} 2. Nc3 {[%clk 0:03:00]}  Nc6 {[%clk 0:02:52]} 3. Bb5 {[%clk 0:02:59]}  Nd4 {[%clk 0:02:49]} 4. Nf3 {[%clk 0:02:59]}  e6 {[%clk 0:02:43]} 5. O-O {[%clk 0:02:58]}  a6 {[%clk 0:02:43]} 6. Bd3 {[%clk 0:02:58]}  Nc6 {[%clk 0:02:44]} 7. Be2 {[%clk 0:02:55]}  Nd4 {[%clk 0:02:37]} 8. Bd3 {[%clk 0:02:55]}  Nc6 {[%clk 0:02:36]} 9. b3 {[%clk 0:02:53]}  g6 {[%clk 0:02:35]} 10. Re1 {[%clk 0:02:44]}  d6 {[%clk 0:02:35]} 11. Bb2 {[%clk 0:02:10]}  Bg7 {[%clk 0:02:35]} 12. Na4 {[%clk 0:01:53]}  e5 {[%clk 0:02:35]} 13. Nc3 {[%clk 0:01:51]}  Nge7 {[%clk 0:02:35]} 14. a4 {[%clk 0:01:49]}  O-O {[%clk 0:02:33]} 15. Bc4 {[%clk 0:01:49]}  Nd4 {[%clk 0:02:26]} 16. Nxd4 {[%clk 0:01:47]}  cxd4 {[%clk 0:02:05]} 17. Nd5 {[%clk 0:01:47]}  Nc6 {[%clk 0:02:05]} 18. c3 {[%clk 0:01:44]}  Be6 {[%clk 0:01:59]} 19. cxd4 {[%clk 0:01:42]}  exd4 {[%clk 0:02:00]} 20. d3 {[%clk 0:01:13]}  Rb8 {[%clk 0:01:49]} 21. Rc1 {[%clk 0:01:08]}  Re8 {[%clk 0:01:10]} 22. h3 {[%clk 0:00:50]}  Kh8 {[%clk 0:00:42]} 23. Nf4 {[%clk 0:00:31]}  Bh6 {[%clk 0:00:38]} 24. Ne2 {[%clk 0:00:22]}  Bxc1 {[%clk 0:00:38]} 25. Qxc1 {[%clk 0:00:23]}  Qf6 {[%clk 0:00:29]} 26. Nxd4 {[%clk 0:00:06]}  Nxd4 {[%clk 0:00:29]} 27. Qc3 {[%clk 0:00:06]}  b5 {[%clk 0:00:24]} 28. axb5 {[%clk 0:00:04]}  axb5 {[%clk 0:00:25]} 29. Qxd4 {[%clk 0:00:04]}  Qxd4 {[%clk 0:00:23]} 30. Bxd4+ {[%clk 0:00:05]}  Kg8 {[%clk 0:00:24]} 31. Bxe6 {[%clk 0:00:05]}  fxe6 {[%clk 0:00:24]} 32. f4 {[%clk 0:00:03]}  Ra8 {[%clk 0:00:22]} 0-1


[Site "https://www.chess.com"]

[Event "Titled Tuesday Blitz June 29 2021"]
[White "Joker_Smile888"]
[Black "yobdc"]
[WhiteElo "2450"]
[BlackElo "2578"]
[Result "1-0"]
[Round "11"]
[TimeControl "180+1"]
[Date "2021.06.29"]
[WhiteClock "0:00:09"]
[BlackClock "0:00:01"]

1. e4 {[%clk 0:03:00]}  c5 {[%clk 0:02:58]} 2. Nf3 {[%clk 0:03:00]}  d6 {[%clk 0:02:58]} 3. c3 {[%clk 0:03:00]}  Nf6 {[%clk 0:02:58]} 4. Be2 {[%clk 0:03:00]}  Nbd7 {[%clk 0:02:57]} 5. Qc2 {[%clk 0:02:56]}  b6 {[%clk 0:02:55]} 6. d4 {[%clk 0:02:55]}  e6 {[%clk 0:02:39]} 7. Bf4 {[%clk 0:02:50]}  Bb7 {[%clk 0:02:39]} 8. Nbd2 {[%clk 0:02:49]}  Be7 {[%clk 0:02:38]} 9. O-O {[%clk 0:02:48]}  cxd4 {[%clk 0:02:37]} 10. cxd4 {[%clk 0:02:46]}  Rc8 {[%clk 0:02:35]} 11. Qd3 {[%clk 0:02:46]}  O-O {[%clk 0:02:30]} 12. Rac1 {[%clk 0:02:37]}  Rxc1 {[%clk 0:02:28]} 13. Rxc1 {[%clk 0:02:36]}  Qa8 {[%clk 0:02:27]} 14. e5 {[%clk 0:02:31]}  dxe5 {[%clk 0:02:24]} 15. dxe5 {[%clk 0:02:27]}  Nd5 {[%clk 0:02:24]} 16. Bg3 {[%clk 0:02:16]}  Rc8 {[%clk 0:02:16]} 17. Rxc8+ {[%clk 0:02:11]}  Qxc8 {[%clk 0:02:15]} 18. Qc4 {[%clk 0:02:09]}  Qxc4 {[%clk 0:01:57]} 19. Bxc4 {[%clk 0:02:10]}  Nc5 {[%clk 0:01:47]} 20. b3 {[%clk 0:02:02]}  a6 {[%clk 0:01:43]} 21. a4 {[%clk 0:01:59]}  Nc3 {[%clk 0:01:35]} 22. Nd4 {[%clk 0:01:54]}  N3e4 {[%clk 0:01:11]} 23. Nxe4 {[%clk 0:01:49]}  Nxe4 {[%clk 0:01:12]} 24. Bf4 {[%clk 0:01:47]}  Bc5 {[%clk 0:01:10]} 25. Be3 {[%clk 0:01:45]}  Kf8 {[%clk 0:00:56]} 26. Kf1 {[%clk 0:01:42]}  Ke7 {[%clk 0:00:56]} 27. g3 {[%clk 0:01:29]}  Nc3 {[%clk 0:00:43]} 28. a5 {[%clk 0:01:11]}  Kd7 {[%clk 0:00:26]} 29. axb6 {[%clk 0:01:04]}  Bxb6 {[%clk 0:00:27]} 30. Ke1 {[%clk 0:00:54]}  Nd5 {[%clk 0:00:26]} 31. Kd2 {[%clk 0:00:48]}  Nxe3 {[%clk 0:00:26]} 32. Kxe3 {[%clk 0:00:49]}  Bc7 {[%clk 0:00:22]} 33. f4 {[%clk 0:00:48]}  Bb6 {[%clk 0:00:22]} 34. Kd3 {[%clk 0:00:48]}  g6 {[%clk 0:00:20]} 35. h4 {[%clk 0:00:45]}  h5 {[%clk 0:00:20]} 36. Kc3 {[%clk 0:00:37]}  Ba5+ {[%clk 0:00:18]} 37. Kd3 {[%clk 0:00:33]}  Be1 {[%clk 0:00:17]} 38. Ne2 {[%clk 0:00:32]}  Bf3 {[%clk 0:00:17]} 39. Bxa6 {[%clk 0:00:28]}  Bxe2+ {[%clk 0:00:17]} 40. Kxe2 {[%clk 0:00:29]}  Bxg3 {[%clk 0:00:18]} 41. Kf3 {[%clk 0:00:28]}  Bxh4 {[%clk 0:00:18]} 42. Bb5+ {[%clk 0:00:26]}  Kd8 {[%clk 0:00:17]} 43. Bc6 {[%clk 0:00:23]}  Be7 {[%clk 0:00:17]} 44. Kg3 {[%clk 0:00:22]}  Bb4 {[%clk 0:00:14]} 45. Kf3 {[%clk 0:00:21]}  Ke7 {[%clk 0:00:15]} 46. Kg3 {[%clk 0:00:21]}  f6 {[%clk 0:00:15]} 47. exf6+ {[%clk 0:00:21]}  Kxf6 {[%clk 0:00:16]} 48. Be8 {[%clk 0:00:20]}  Be1+ {[%clk 0:00:15]} 49. Kf3 {[%clk 0:00:21]}  Bd2 {[%clk 0:00:14]} 50. Kg3 {[%clk 0:00:20]}  Ke7 {[%clk 0:00:15]} 51. Bxg6 {[%clk 0:00:20]}  h4+ {[%clk 0:00:13]} 52. Kg4 {[%clk 0:00:16]}  h3 {[%clk 0:00:13]} 53. Be4 {[%clk 0:00:13]}  h2 {[%clk 0:00:12]} 54. f5 {[%clk 0:00:13]}  e5 {[%clk 0:00:12]} 55. Kg3 {[%clk 0:00:11]}  Bf4+ {[%clk 0:00:11]} 56. Kg2 {[%clk 0:00:12]}  Kf6 {[%clk 0:00:07]} 57. b4 {[%clk 0:00:12]}  Bd2 {[%clk 0:00:06]} 58. b5 {[%clk 0:00:12]}  Ba5 {[%clk 0:00:06]} 59. Kxh2 {[%clk 0:00:13]}  Kg5 {[%clk 0:00:06]} 60. Kg3 {[%clk 0:00:13]}  Bb6 {[%clk 0:00:07]} 61. Kf3 {[%clk 0:00:13]}  Kf6 {[%clk 0:00:07]} 62. Bd3 {[%clk 0:00:14]}  Bd4 {[%clk 0:00:06]} 63. Ke4 {[%clk 0:00:14]}  Ke7 {[%clk 0:00:04]} 64. Kd5 {[%clk 0:00:14]}  Kd7 {[%clk 0:00:05]} 65. f6 {[%clk 0:00:13]}  Bc3 {[%clk 0:00:03]} 66. Bg6 {[%clk 0:00:12]}  e4 {[%clk 0:00:03]} 67. f7 {[%clk 0:00:11]}  Bg7 {[%clk 0:00:02]} 68. Bxe4 {[%clk 0:00:10]}  Bf8 {[%clk 0:00:02]} 69. b6 {[%clk 0:00:08]}  Kc8 {[%clk 0:00:02]} 70. Kc6 {[%clk 0:00:08]}  Kb8 {[%clk 0:00:02]} 71. Kd7 {[%clk 0:00:09]}  Bc5 {[%clk 0:00:01]} 72. Ke8 {[%clk 0:00:09]} 1-0


[Site "https://www.chess.com"]

[Event "Titled Tuesday Blitz June 29 2021"]
[White "Khamrakulov_Djurabek"]
[Black "Neftegor"]
[WhiteElo "2792"]
[BlackElo "2548"]
[Result "1/2-1/2"]
[Round "11"]
[TimeControl "180+1"]
[Date "2021.06.29"]
[WhiteClock "0:00:07"]
[BlackClock "0:00:19"]

1. e4 {[%clk 0:03:00]}  e6 {[%clk 0:02:57]} 2. d4 {[%clk 0:03:00]}  d5 {[%clk 0:02:57]} 3. Bd3 {[%clk 0:03:01]}  dxe4 {[%clk 0:02:56]} 4. Bxe4 {[%clk 0:03:01]}  Nf6 {[%clk 0:02:56]} 5. Bf3 {[%clk 0:03:01]}  c5 {[%clk 0:02:56]} 6. Ne2 {[%clk 0:03:00]}  Nc6 {[%clk 0:02:56]} 7. Be3 {[%clk 0:02:57]}  cxd4 {[%clk 0:02:55]} 8. Nxd4 {[%clk 0:02:54]}  Ne5 {[%clk 0:02:55]} 9. Nc3 {[%clk 0:02:52]}  a6 {[%clk 0:02:54]} 10. O-O {[%clk 0:02:49]}  Qc7 {[%clk 0:02:54]} 11. Bf4 {[%clk 0:02:46]}  Bd6 {[%clk 0:02:49]} 12. Ndb5 {[%clk 0:02:46]}  axb5 {[%clk 0:02:41]} 13. Nxb5 {[%clk 0:02:46]}  Nxf3+ {[%clk 0:02:41]} 14. Qxf3 {[%clk 0:02:46]}  Bxf4 {[%clk 0:02:40]} 15. Nxc7+ {[%clk 0:02:47]}  Bxc7 {[%clk 0:02:40]} 16. Qc3 {[%clk 0:02:47]}  Bd6 {[%clk 0:02:23]} 17. Rfd1 {[%clk 0:02:46]}  Ke7 {[%clk 0:02:22]} 18. Rxd6 {[%clk 0:02:41]}  Kxd6 {[%clk 0:02:22]} 19. Qg3+ {[%clk 0:02:41]}  Ke7 {[%clk 0:02:21]} 20. Qxg7 {[%clk 0:02:42]}  Rg8 {[%clk 0:02:21]} 21. Qh6 {[%clk 0:02:39]}  Bd7 {[%clk 0:02:21]} 22. Qh4 {[%clk 0:02:29]}  Rg4 {[%clk 0:02:18]} 23. Qh6 {[%clk 0:02:27]}  Bc6 {[%clk 0:02:12]} 24. g3 {[%clk 0:02:27]}  Rag8 {[%clk 0:02:08]} 25. Qe3 {[%clk 0:02:21]}  Nd5 {[%clk 0:01:41]} 26. Qc5+ {[%clk 0:02:19]}  Kf6 {[%clk 0:01:41]} 27. a4 {[%clk 0:02:11]}  h5 {[%clk 0:01:37]} 28. a5 {[%clk 0:02:08]}  Ne7 {[%clk 0:01:33]} 29. Qxh5 {[%clk 0:01:21]}  Nf5 {[%clk 0:01:29]} 30. c3 {[%clk 0:01:17]}  Rh4 {[%clk 0:01:25]} 31. Qxh4+ {[%clk 0:00:52]}  Nxh4 {[%clk 0:01:23]} 32. a6 {[%clk 0:00:51]}  bxa6 {[%clk 0:01:20]} 33. Rxa6 {[%clk 0:00:51]}  Bf3 {[%clk 0:01:20]} 34. Ra4 {[%clk 0:00:49]}  e5 {[%clk 0:01:18]} 35. h3 {[%clk 0:00:44]}  Nf5 {[%clk 0:01:13]} 36. Ra6+ {[%clk 0:00:41]}  Ke7 {[%clk 0:01:12]} 37. Ra7+ {[%clk 0:00:41]}  Ke6 {[%clk 0:01:12]} 38. Kh2 {[%clk 0:00:37]}  Rd8 {[%clk 0:01:10]} 39. g4 {[%clk 0:00:36]}  Ne7 {[%clk 0:01:04]} 40. Ra6+ {[%clk 0:00:35]}  Kd7 {[%clk 0:00:51]} 41. Rf6 {[%clk 0:00:33]}  Bd5 {[%clk 0:00:51]} 42. h4 {[%clk 0:00:32]}  Rg8 {[%clk 0:00:42]} 43. Kg3 {[%clk 0:00:31]}  Be6 {[%clk 0:00:42]} 44. f3 {[%clk 0:00:29]}  Nd5 {[%clk 0:00:36]} 45. Rh6 {[%clk 0:00:28]}  Ke7 {[%clk 0:00:33]} 46. g5 {[%clk 0:00:25]}  Ne3 {[%clk 0:00:32]} 47. Rh7 {[%clk 0:00:21]}  Nf5+ {[%clk 0:00:32]} 48. Kf2 {[%clk 0:00:21]}  Rd8 {[%clk 0:00:30]} 49. Ke1 {[%clk 0:00:17]}  Bc4 {[%clk 0:00:28]} 50. h5 {[%clk 0:00:14]}  Ke6 {[%clk 0:00:25]} 51. g6 {[%clk 0:00:12]}  fxg6 {[%clk 0:00:25]} 52. hxg6 {[%clk 0:00:13]}  Kf6 {[%clk 0:00:25]} 53. Rc7 {[%clk 0:00:13]}  Be6 {[%clk 0:00:24]} 54. Rc6 {[%clk 0:00:13]}  Rg8 {[%clk 0:00:23]} 55. b4 {[%clk 0:00:13]}  Rxg6 {[%clk 0:00:23]} 56. b5 {[%clk 0:00:14]}  Rg2 {[%clk 0:00:21]} 57. c4 {[%clk 0:00:14]}  Ke7 {[%clk 0:00:21]} 58. b6 {[%clk 0:00:14]}  Rb2 {[%clk 0:00:19]} 59. Rc7+ {[%clk 0:00:15]}  Kd6 {[%clk 0:00:18]} 60. c5+ {[%clk 0:00:15]}  Kd5 {[%clk 0:00:18]} 61. b7 {[%clk 0:00:16]}  Nd4 {[%clk 0:00:18]} 62. c6 {[%clk 0:00:15]}  Nxc6 {[%clk 0:00:14]} 63. Kd1 {[%clk 0:00:15]}  Kc5 {[%clk 0:00:14]} 64. Kc1 {[%clk 0:00:16]}  Rb6 {[%clk 0:00:14]} 65. Kc2 {[%clk 0:00:16]}  Bc4 {[%clk 0:00:15]} 66. Kc3 {[%clk 0:00:16]}  Bd5 {[%clk 0:00:14]} 67. Kd3 {[%clk 0:00:15]}  Kd6 {[%clk 0:00:15]} 68. Rc8 {[%clk 0:00:15]}  Nb4+ {[%clk 0:00:14]} 69. Ke3 {[%clk 0:00:15]}  Rxb7 {[%clk 0:00:14]} 70. f4 {[%clk 0:00:15]}  Re7 {[%clk 0:00:15]} 71. fxe5+ {[%clk 0:00:15]}  Rxe5+ {[%clk 0:00:15]} 72. Kd2 {[%clk 0:00:15]}  Re4 {[%clk 0:00:15]} 73. Rd8+ {[%clk 0:00:15]}  Kc5 {[%clk 0:00:15]} 74. Rc8+ {[%clk 0:00:16]}  Nc6 {[%clk 0:00:16]} 75. Rh8 {[%clk 0:00:16]}  Rb4 {[%clk 0:00:16]} 76. Rh3 {[%clk 0:00:16]}  Ne5 {[%clk 0:00:16]} 77. Rc3+ {[%clk 0:00:16]}  Kd4 {[%clk 0:00:17]} 78. Rc7 {[%clk 0:00:15]}  Rb2+ {[%clk 0:00:17]} 79. Kc1 {[%clk 0:00:15]}  Rb3 {[%clk 0:00:17]} 80. Rc2 {[%clk 0:00:15]}  Nc4 {[%clk 0:00:17]} 81. Rh2 {[%clk 0:00:13]}  Re3 {[%clk 0:00:18]} 82. Rg2 {[%clk 0:00:09]}  Kc3 {[%clk 0:00:19]} 83. Rc2+ {[%clk 0:00:09]}  Kd3 {[%clk 0:00:19]} 84. Kd1 {[%clk 0:00:05]}  Re1+ {[%clk 0:00:20]} 85. Kxe1 {[%clk 0:00:05]}  Kxc2 {[%clk 0:00:21]} 86. Kf2 {[%clk 0:00:06]}  Kd3 {[%clk 0:00:20]} 87. Kg3 {[%clk 0:00:07]}  Ke4 {[%clk 0:00:20]} 88. Kg4 {[%clk 0:00:07]}  Ne3+ {[%clk 0:00:21]} 89. Kg5 {[%clk 0:00:08]}  Ke5 {[%clk 0:00:21]} 90. Kg6 {[%clk 0:00:08]}  Nf5 {[%clk 0:00:21]} 91. Kg5 {[%clk 0:00:08]}  Bf7 {[%clk 0:00:21]} 92. Kg4 {[%clk 0:00:08]}  Nd4 {[%clk 0:00:20]} 93. Kg5 {[%clk 0:00:08]}  Nf3+ {[%clk 0:00:18]} 94. Kg4 {[%clk 0:00:08]}  Ke4 {[%clk 0:00:19]} 95. Kg3 {[%clk 0:00:07]}  Ne5 {[%clk 0:00:19]} 96. Kh4 {[%clk 0:00:07]}  Kf4 {[%clk 0:00:19]} 97. Kh3 {[%clk 0:00:08]}  Ng4 {[%clk 0:00:18]} 98. Kg2 {[%clk 0:00:06]}  Bg6 {[%clk 0:00:19]} 99. Kh3 {[%clk 0:00:05]}  Bd3 {[%clk 0:00:19]} 100. Kh4 {[%clk 0:00:06]}  Bg6 {[%clk 0:00:18]} 101. Kh3 {[%clk 0:00:06]}  Kf3 {[%clk 0:00:19]} 102. Kh4 {[%clk 0:00:07]}  Kf4 {[%clk 0:00:19]} 103. Kh3 {[%clk 0:00:07]} 1/2-1/2


[Site "https://www.chess.com"]

[Event "Titled Tuesday Blitz June 29 2021"]
[White "MFBerna"]
[Black "GelmanAlexander"]
[WhiteElo "2429"]
[BlackElo "2569"]
[Result "0-1"]
[Round "11"]
[TimeControl "180+1"]
[Date "2021.06.29"]
[WhiteClock "0:00:04"]
[BlackClock "0:00:07"]

1. e4 {[%clk 0:03:00]}  c5 {[%clk 0:02:59]} 2. Nf3 {[%clk 0:02:59]}  e6 {[%clk 0:03:00]} 3. d4 {[%clk 0:02:59]}  cxd4 {[%clk 0:03:00]} 4. Nxd4 {[%clk 0:03:00]}  a6 {[%clk 0:02:59]} 5. Nc3 {[%clk 0:03:00]}  b5 {[%clk 0:02:59]} 6. Bd3 {[%clk 0:03:00]}  Bb7 {[%clk 0:02:59]} 7. O-O {[%clk 0:03:00]}  Nc6 {[%clk 0:02:57]} 8. Nxc6 {[%clk 0:02:58]}  Bxc6 {[%clk 0:02:58]} 9. Re1 {[%clk 0:02:58]}  Bc5 {[%clk 0:02:53]} 10. Be3 {[%clk 0:02:55]}  Qb6 {[%clk 0:02:50]} 11. Nd5 {[%clk 0:02:43]}  Bxd5 {[%clk 0:02:46]} 12. exd5 {[%clk 0:02:44]}  Nf6 {[%clk 0:02:42]} 13. dxe6 {[%clk 0:02:38]}  dxe6 {[%clk 0:02:43]} 14. Qf3 {[%clk 0:02:35]}  O-O {[%clk 0:02:41]} 15. Rad1 {[%clk 0:02:31]}  Rad8 {[%clk 0:02:40]} 16. h3 {[%clk 0:02:12]}  Bxe3 {[%clk 0:02:38]} 17. Rxe3 {[%clk 0:02:07]}  h6 {[%clk 0:02:34]} 18. Rde1 {[%clk 0:01:58]}  Rd5 {[%clk 0:02:26]} 19. Re5 {[%clk 0:01:47]}  Rfd8 {[%clk 0:02:25]} 20. Rxd5 {[%clk 0:01:44]}  Rxd5 {[%clk 0:02:26]} 21. Qe3 {[%clk 0:01:38]}  Qc7 {[%clk 0:02:12]} 22. a3 {[%clk 0:01:23]}  Rd8 {[%clk 0:02:07]} 23. Qf3 {[%clk 0:01:14]}  Qb6 {[%clk 0:01:57]} 24. Qe3 {[%clk 0:01:10]}  Qd6 {[%clk 0:01:55]} 25. Qe5 {[%clk 0:01:08]}  Qxe5 {[%clk 0:01:53]} 26. Rxe5 {[%clk 0:01:09]}  Nd7 {[%clk 0:01:37]} 27. Re3 {[%clk 0:01:06]}  Nc5 {[%clk 0:01:36]} 28. Kf1 {[%clk 0:01:00]}  Kf8 {[%clk 0:01:35]} 29. Ke2 {[%clk 0:01:00]}  Ke7 {[%clk 0:01:35]} 30. Rg3 {[%clk 0:00:54]}  g5 {[%clk 0:01:34]} 31. h4 {[%clk 0:00:46]}  f6 {[%clk 0:01:30]} 32. hxg5 {[%clk 0:00:44]}  hxg5 {[%clk 0:01:30]} 33. Rh3 {[%clk 0:00:42]}  Kd6 {[%clk 0:01:24]} 34. b4 {[%clk 0:00:36]}  Na4 {[%clk 0:01:21]} 35. Rh7 {[%clk 0:00:32]}  Ke5 {[%clk 0:01:17]} 36. Ke3 {[%clk 0:00:31]}  Nc3 {[%clk 0:01:06]} 37. Ra7 {[%clk 0:00:28]}  Rd6 {[%clk 0:01:05]} 38. g3 {[%clk 0:00:24]}  g4 {[%clk 0:00:55]} 39. Ra8 {[%clk 0:00:19]}  f5 {[%clk 0:00:50]} 40. Rc8 {[%clk 0:00:16]}  Nb1 {[%clk 0:00:25]} 41. a4 {[%clk 0:00:12]}  bxa4 {[%clk 0:00:13]} 42. Rc5+ {[%clk 0:00:11]}  Kf6 {[%clk 0:00:11]} 43. c4 {[%clk 0:00:12]}  Nc3 {[%clk 0:00:10]} 44. Ra5 {[%clk 0:00:11]}  e5 {[%clk 0:00:08]} 45. c5 {[%clk 0:00:09]}  Rd8 {[%clk 0:00:06]} 46. Rxa6+ {[%clk 0:00:07]}  Kg5 {[%clk 0:00:07]} 47. Bc4 {[%clk 0:00:05]}  f4+ {[%clk 0:00:06]} 48. gxf4+ {[%clk 0:00:04]}  exf4# {[%clk 0:00:07]} 0-1


[Site "https://www.chess.com"]